{"text_format":"1","workbook":"xlsx","n_sheets":3,"sheets":["SO 1.01.2","Kategorie monitoringu","hide"],"not_rendered":{"charts":0,"images":0,"macros":1,"external_links":0,"defined_names":5,"comments":1,"pivot_tables":0},"unopened":[],"bounds":{"document_bytes":16777216,"sheet_cells":100000,"rows_first":2000,"rows_last":500,"rows_between":2000,"halvings":0,"cell_chars":16384,"cell_head_chars":4096},"cells_cut":0,"cells_raw":0,"read":"whole","date_system":"1900"}

{"sheet":"SO 1.01.2","index":0,"n_rows":164,"n_cols":12,"rows_kept":164,"cut":false,"hidden":false,"merged":[[2,10,2,11],[5,8,5,9],[5,5,5,7],[6,5,6,7],[7,1,7,3],[7,6,7,7],[2,3,2,4],[1,10,1,11],[9,10,10,11],[9,8,11,8],[9,9,11,9],[3,1,3,3],[4,8,4,9],[4,5,4,7],[6,1,6,3],[9,1,11,1],[9,7,11,7],[9,2,11,2],[9,3,11,3],[8,1,8,9],[6,8,6,9],[3,8,3,9],[9,5,11,5],[9,6,11,6],[9,4,11,4],[7,8,7,9],[0,1,0,7],[1,1,1,2],[1,8,1,9]]}
[null,"SOUPIS PRACÍ / ROZPOČET",null,null,null,null,null,null,null,null,null,{"$f":"D3","v":"SO 1.01.2"}]
[null,"Stavba:",null,null,null,"Výstavba PZS Chrást u Plzně - Stupno v km 12,637 a 12,846",null,null,"CELKEM:",null,{"$f":"SUMIFS(L:L,B:B,\"SOUČET\")","v":0}]
[null,"SO/PS:",null,"SO 1.01.2",null,"Přejezdová konstrukce v  km 12,846"]
[null,"Kategorie monitoringu:",null,null,"E.1.3",{"$f":"IF(E4='Kategorie monitoringu'!A1,'Kategorie monitoringu'!B1,IF(E4='Kategorie monitoringu'!A2,'Kategorie monitoringu'!B2,IF(E4='Kategorie monitoringu'!A3,'Kategorie monitoringu'!B3,IF(E4='Kategorie monitoringu'!A4,'Kategorie monitoringu'!B4,IF(E4='Kategorie monitoringu'!A5,'Kategorie monitoringu'!B5,IF(E4='Kategorie monitoringu'!A6,'Kategorie monitoringu'!B6,IF(E4='Kategorie monitoringu'!A7,'Kategorie monitoringu'!B7,IF(E4='Kategorie monitoringu'!A8,'Kategorie monitoringu'!B8,IF(E4='Kategorie monitoringu'!A9,'Kategorie monitoringu'!B9,IF(E4='Kategorie monitoringu'!A10,'Kategorie monitoringu'!B10,IF(E4='Kategorie monitoringu'!A11,'Kategorie monitoringu'!B11,IF(E4='Kategorie monitoringu'!A12,'Kategorie monitoringu'!B12,IF(E4='Kategorie monitoringu'!A13,'Kategorie monitoringu'!B13,IF(E4='Kategorie monitoringu'!A14,'Kategorie monitoringu'!B14,IF(E4='Kategorie monitoringu'!A15,'Kategorie monitoringu'!B15,IF(E4='Kategorie monitoringu'!A16,'Kategorie monitoringu'!B16,IF(E4='Kategorie monitoringu'!A17,'Kategorie monitoringu'!B17,IF(E4='Kategorie monitoringu'!A18,'Kategorie monitoringu'!B18,IF(E4='Kategorie monitoringu'!A19,'Kategorie monitoringu'!B19,IF(E4='Kategorie monitoringu'!A20,'Kategorie monitoringu'!B20,IF(E4='Kategorie monitoringu'!A21,'Kategorie monitoringu'!B21,IF(E4='Kategorie monitoringu'!A22,'Kategorie monitoringu'!B22,IF(E4='Kategorie monitoringu'!A23,'Kategorie monitoringu'!B23,IF(E4='Kategorie monitoringu'!A24,'Kategorie monitoringu'!B24,IF(E4='Kategorie monitoringu'!A25,'Kategorie monitoringu'!B25,\"\")))))))))))))))))))))))))","v":"Železniční přejezdy"},null,null,"Klasifikace SO/PS:",null,828,7]
[null,"Stupeň dokumentace:",null,null,"Stádium 3",{"$f":"IF((E5=\"Stádium 2\"),\"  Dokumentace pro územní řízení - DUR\",(IF((E5=\"Stádium 3\"),\"  Projektová dokumentace (DOS/DSP)\",\"\")))","v":"  Projektová dokumentace (DOS/DSP)"},null,null,"ISPROFIN:",null,"5003540006"]
[null,"Majetek:",null,null,"SŽDC s.o.",null,null,null,"Označení (S-kód):"]
[null,"Zahájení realizace SO/PS:",null,null,"2019-03-01","Zpracovatel:",null,null,"Cenová úroveň:",null,2018]
[null,"Ukončení realizace SO/PS.",null,null,"2019-09-01","KTA technika, s.r.o., Klatovská tř. 863/100, 301 00 Plzeň 3","Aleš Trnka, DiS.",null,"Datum zpracování:",null,"2018-09-13"]
[null,{"$f":"F2","v":"Výstavba PZS Chrást u Plzně - Stupno v km 12,637 a 12,846"},null,null,null,null,null,null,null,null,{"$f":"$I$5","v":"ISPROFIN:"},{"$f":"K5","v":"5003540006"}]
[null,"Poř. číslo","Kód položky","Varianta","Cenová soustava","Název položky/dílu","MJ","Množství","Jednotková hmotnost","Celková hmotnost","Cena"]
[]
[null,null,null,null,null,null,null,null,null,null,"Jednotková","Celkem"]
["D","Díl:",0,null,null,"Všeobecné konstrukce a práce"]
["P",{"$f":"1+MAX($B$13:B13)","v":1},"015111",1,"OTSKP","POPLATKY ZA LIKVIDACŮ ODPADŮ NEKONTAMINOVANÝCH - 17 05 04  VYTĚŽENÉ ZEMINY A HORNINY -  I. TŘÍDA TĚŽITELNOSTI","T",206.18199999999999,0,0,null,{"$f":"ROUND((ROUND(H14,3))*(ROUND(K14,2)),2)","v":0}]
["PP",null,null,null,null,null,null,""]
["VV",null,null,null,null,"(70,864+ 116/2)*1,6",null,""]
["TS",null,null,null,null,"Technická specifikace položky odpovídá příslušné cenové soustavě",null,""]
[null,2,"015130",1,"OTSKP","POPLATKY ZA LIKVIDACŮ ODPADŮ NEKONTAMINOVANÝCH - 17 03 02  VYBOURANÝ ASFALTOVÝ BETON BEZ DEHTU","T",21.14,0,0,null,{"$f":"ROUND((ROUND(H18,3))*(ROUND(K18,2)),2)","v":0}]
[null,null,null,null,null,null,null,""]
[null,null,null,null,null,"9,61*2,2",null,""]
[null,null,null,null,null,"Technická specifikace položky odpovídá příslušné cenové soustavě",null,""]
[null,3,"015150",1,"OTSKP","POPLATKY ZA LIKVIDACŮ ODPADŮ NEKONTAMINOVANÝCH - 17 05 08  ŠTĚRK Z KOLEJIŠTĚ (ODPAD PO RECYKLACI)","T",196.56,0,0,null,{"$f":"ROUND((ROUND(H22,3))*(ROUND(K22,2)),2)","v":0}]
[null,null,null,null,null,null,null,""]
[null,null,null,null,null,"109,2*1,8",null,""]
[null,null,null,null,null,"Technická specifikace položky odpovídá příslušné cenové soustavě",null,""]
[null,4,"015210",1,"OTSKP","POPLATKY ZA LIKVIDACŮ ODPADŮ NEKONTAMINOVANÝCH - 17 01 01  ŽELEZNIČNÍ PRAŽCE BETONOVÉ","T",23.49,0,0,null,{"$f":"ROUND((ROUND(H26,3))*(ROUND(K26,2)),2)","v":0}]
[null,null,null,null,null,null,null,""]
[null,null,null,null,null,"87*0,27",null,""]
[null,null,null,null,null,"Technická specifikace položky odpovídá příslušné cenové soustavě",null,""]
["D","Součet","za  Díl",null,null,"Všeobecné konstrukce a práce",null,null,null,null,null,{"$f":"SUM(L14:L29)","v":0}]
["D","Díl:",1,null,null,"Zemní práce"]
[null,5,"113338      ",1,"OTSKP","ODSTRAN PODKL ZPEVNĚNÝCH PLOCH S ASFALT POJIVEM, ODVOZ DO 20KM","M3",9.61,0,0,null,{"$f":"ROUND((ROUND(H32,3))*(ROUND(K32,2)),2)","v":0}]
[null,null,null,null,null,null,null,""]
[null,null,null,null,null,"38,44*0,25",null,""]
[null,null,null,null,null,"Technická specifikace položky odpovídá příslušné cenové soustavě",null,""]
[null,6,"123738      ",1,"OTSKP","ODKOP PRO SPOD STAVBU SILNIC A ŽELEZNIC TŘ. I, ODVOZ DO 20KM","M3",70.864000000000004,0,0,null,{"$f":"ROUND((ROUND(H36,3))*(ROUND(K36,2)),2)","v":0}]
[null,null,null,null,null,null,null,""]
[null,null,null,null,null,"37,324+33,540 (pro stabil a štěrkodrť)",null,""]
[null,null,null,null,null,"Technická specifikace položky odpovídá příslušné cenové soustavě",null,""]
[null,7,"12932       ",1,"OTSKP","ČIŠTĚNÍ PŘÍKOPŮ OD NÁNOSU DO 0,5M3/M - reprofilace","M",116,0,0,null,{"$f":"ROUND((ROUND(H40,3))*(ROUND(K40,2)),2)","v":0}]
[null,null,null,null,null,null,null,""]
[null,null,null,null,null,"53 +50+3+10",null,""]
[null,null,null,null,null,"Technická specifikace položky odpovídá příslušné cenové soustavě",null,""]
[null,8,"18110       ",1,"OTSKP","ÚPRAVA PLÁNĚ SE ZHUTNĚNÍM V HORNINĚ TŘ. I ","M2",132.19999999999999,0,0,null,{"$f":"ROUND((ROUND(H44,3))*(ROUND(K44,2)),2)","v":0}]
[null,null,null,null,null,null,null,""]
[null,null,null,null,null,"16*6,5+28,2",null,""]
[null,null,null,null,null,"Technická specifikace položky odpovídá příslušné cenové soustavě",null,""]
["D","Součet","za  Díl",null,null,"Zemní práce",null,null,null,null,null,{"$f":"SUM(L32:L47)","v":0}]
["D","Díl:",2,null,null,"Zakládání"]
[null,9,"212035      ",1,"OTSKP","TRATIVODY KOMPLET Z TRUB NEKOV DN DO 150MM, RÝHA TŘ I                           vč. svod potrubí","M",14,0,0,null,{"$f":"ROUND((ROUND(H50,3))*(ROUND(K50,2)),2)","v":0}]
[null,null,null,null,null,null,null,""]
[null,null,null,null,null,"9+2+3",null,""]
[null,null,null,null,null,"Technická specifikace položky odpovídá příslušné cenové soustavě",null,""]
["D","Součet","za  Díl",null,null,"Zakládání",null,null,null,null,null,{"$f":"SUM(L50:L53)","v":0}]
["D","Díl:",5,null,null,"Komunikace"]
[null,10,"501101",1,"OTSKP","ZŘÍZENÍ KONSTRUKČNÍ VRSTVY TĚLESA ŽELEZNIČNÍHO SPODKU ZE ŠTĚRKODRTI NOVÉ","M3",33.54,0,0,null,{"$f":"ROUND((ROUND(H56,3))*(ROUND(K56,2)),2)","v":0}]
[null,null,null,null,null,null,null,""]
[null,null,null,null,null,"6,5*0,3*17,2",null,""]
[null,null,null,null,null,"Technická specifikace položky odpovídá příslušné cenové soustavě",null,""]
[null,11,"501900",1,"OTSKP","ZŘÍZENÍ KONSTRUKČNÍ VRSTVY TĚLESA ŽELEZNIČNÍHO SPODKU Z JINÉHO MATERIÁLU - cementová stabilizace z dovozeného materiálu","M3",37.323999999999998,0,0,null,{"$f":"ROUND((ROUND(H60,3))*(ROUND(K60,2)),2)","v":0}]
[null,null,null,null,null,null,null,""]
[null,null,null,null,null,"6,2*0,35*17,2",null,""]
[null,null,null,null,null,"Technická specifikace položky odpovídá příslušné cenové soustavě",null,""]
[null,12,"512550",1,"OTSKP","KOLEJOVÉ LOŽE - ZŘÍZENÍ Z KAMENIVA HRUBÉHO DRCENÉHO (ŠTĚRK)","M3",111.592,0,0,null,{"$f":"ROUND((ROUND(H64,3))*(ROUND(K64,2)),2)","v":0}]
[null,null,null,null,null,null,null,""]
[null,null,null,null,null,"52*2,146",null,""]
[null,null,null,null,null,"Technická specifikace položky odpovídá příslušné cenové soustavě",null,""]
[null,13,"528231",1,"OTSKP","KOLEJ 49 E1, ROZD. \"D\", BEZSTYKOVÁ, PR. BET. PODKLADNICOVÝ, UP. TUHÉ","M",52,0,0,null,{"$f":"ROUND((ROUND(H68,3))*(ROUND(K68,2)),2)","v":0}]
[null,null,null,null,null,null,null,""]
[null,null,null,null,null,"52 m",null,""]
[null,null,null,null,null,"Technická specifikace položky odpovídá příslušné cenové soustavě",null,""]
[null,14,"542121",1,"OTSKP","SMĚROVÉ A VÝŠKOVÉ VYROVNÁNÍ KOLEJE NA PRAŽCÍCH BETONOVÝCH DO 0,05 M","M",100,0,0,null,{"$f":"ROUND((ROUND(H72,3))*(ROUND(K72,2)),2)","v":0}]
[null,null,null,null,null,null,null,""]
[null,null,null,null,null,"(291-39-52)/2",null,""]
[null,null,null,null,null,"Technická specifikace položky odpovídá příslušné cenové soustavě",null,""]
[null,15,"543332",1,"OTSKP","VÝMĚNA KOLEJNICE 49 E1 SPOJITĚ ","M",150,0,0,null,{"$f":"ROUND((ROUND(H76,3))*(ROUND(K76,2)),2)","v":0}]
[null,null,null,null,null,0,null,""]
[null,null,null,null,null,"(45+30)*2",null,""]
[null,null,null,null,null,"Technická specifikace položky odpovídá příslušné cenové soustavě",null,""]
[null,16,"545121",1,"OTSKP","SVAR KOLEJNIC (STEJNÉHO TVARU) 49 E1, T JEDNOTLIVĚ","KUS",14,0,0,null,{"$f":"ROUND((ROUND(H80,3))*(ROUND(K80,2)),2)","v":0}]
[null,null,null,null,null,null,null,""]
[null,null,null,null,null,"14 ks",null,""]
[null,null,null,null,null,"Technická specifikace položky odpovídá příslušné cenové soustavě",null,""]
[null,17,"57130       ",1,"OTSKP","UZAVŘENÉ OBALOVANÉ KAMENIVO ","M3",4.6100000000000003,0,0,null,{"$f":"ROUND((ROUND(H84,3))*(ROUND(K84,2)),2)","v":0}]
[null,null,null,null,null,null,null,""]
[null,null,null,null,null,"38,44*0,12",null,""]
[null,null,null,null,null,"Technická specifikace položky odpovídá příslušné cenové soustavě",null,""]
[null,18,"574A43      ",1,"OTSKP","ASFALTOVÝ BETON PRO OBRUSNÉ VRSTVY ACO 11 TL. 50MM ","M2",38.44,0,0,null,{"$f":"ROUND((ROUND(H88,3))*(ROUND(K88,2)),2)","v":0}]
[null,null,null,null,null,null,null,""]
[null,null,null,null,null,"19,79+18,65",null,""]
[null,null,null,null,null,"Technická specifikace položky odpovídá příslušné cenové soustavě",null,""]
[null,19,"574C57      ",1,"OTSKP","ASFALTOVÝ BETON PRO LOŽNÍ VRSTVY ACL 22 TL. 50MM ","M2",38.44,0,0,null,{"$f":"ROUND((ROUND(H92,3))*(ROUND(K92,2)),2)","v":0}]
[null,null,null,null,null,null,null,""]
[null,null,null,null,null,"19,79+18,65",null,""]
[null,null,null,null,null,"Technická specifikace položky odpovídá příslušné cenové soustavě",null,""]
["D","Součet","za  Díl",null,null,"Komunikace",null,null,null,null,null,{"$f":"SUM(L56:L95)","v":0}]
["D","Díl:",8,null,null,"Potrubí"]
[null,20,"87446",1,"OTSKP","POTRUBÍ Z TRUB PLASTOVÝCH ODPADNÍCH DN DO 400MM","M",12,0,0,null,{"$f":"ROUND((ROUND(H98,3))*(ROUND(K98,2)),2)","v":0}]
[null,null,null,null,null,null,null,""]
[null,null,null,null,null,"12 m",null,""]
[null,null,null,null,null,"Technická specifikace položky odpovídá příslušné cenové soustavě",null,""]
[null,21,"89516       ",1,"OTSKP","DRENÁŽNÍ VÝUSŤ Z BETON DÍLCŮ - nebo monolitické","KUS",2,0,0,null,{"$f":"ROUND((ROUND(H102,3))*(ROUND(K102,2)),2)","v":0}]
[null,null,null,null,null,null,null,""]
[null,null,null,null,null,"1 ks",null,""]
[null,null,null,null,null,"Technická specifikace položky odpovídá příslušné cenové soustavě",null,""]
[null,22,"895811    ",1,"OTSKP","DRENÁŽNÍ ŠACHTICE NORMÁLNÍ Z PLAST DÍLCŮ ŠN 60","KUS",2,0,0,null,{"$f":"ROUND((ROUND(H106,3))*(ROUND(K106,2)),2)","v":0}]
[null,null,null,null,null,null,null,""]
[null,null,null,null,null,"1 ks",null,""]
[null,null,null,null,null,"Technická specifikace položky odpovídá příslušné cenové soustavě",null,""]
["D","Součet","za  Díl",null,null,"Potrubí",null,null,null,null,null,{"$f":"SUM(L98:L109)","v":0}]
["D","Díl:",9,null,null,"Ostatní konstrukce a práce"]
[null,23,"91723       ",1,"OTSKP","OBRUBY Z BETON KRAJNÍKŮ ","M",6,0,0,null,{"$f":"ROUND((ROUND(H112,3))*(ROUND(K112,2)),2)","v":0}]
[null,null,null,null,null,null,null,""]
[null,null,null,null,null,"2*3",null,""]
[null,null,null,null,null,"Technická specifikace položky odpovídá příslušné cenové soustavě",null,""]
[null,24,"918146",1,"OTSKP","ČELA BETONOVÁ PROPUSTU Z TRUB DN DO 400MM","KUS",2,0,0,null,{"$f":"ROUND((ROUND(H116,3))*(ROUND(K116,2)),2)","v":0}]
[null,null,null,null,null,null,null,""]
[null,null,null,null,null,"2 ks",null,""]
[null,null,null,null,null,"Technická specifikace položky odpovídá příslušné cenové soustavě",null,""]
[null,25,"921311",1,"OTSKP","ŽELEZNIČNÍ PŘEJEZD ŽELEZOBETONOVÝ","M2",21.6,0,0,null,{"$f":"ROUND((ROUND(H120,3))*(ROUND(K120,2)),2)","v":0}]
[null,null,null,null,null,null,null,""]
[null,null,null,null,null,"7,2*3",null,""]
[null,null,null,null,null,"Technická specifikace položky odpovídá příslušné cenové soustavě",null,""]
[null,26,"931334      ",1,"OTSKP","TĚSNĚNÍ DILATAČNÍCH SPAR POLYURETANOVÝM TMELEM PRŮŘEZU DO 400MM2","M",6,0,0,null,{"$f":"ROUND((ROUND(H124,3))*(ROUND(K124,2)),2)","v":0}]
[null,null,null,null,null,null,null,""]
[null,null,null,null,null,"2*3",null,""]
[null,null,null,null,null,"Technická specifikace položky odpovídá příslušné cenové soustavě",null,""]
[null,27,"935212      ",1,"OTSKP","PŘÍKOPOVÉ ŽLABY Z BETON TVÁRNIC ŠÍŘ DO 600MM DO BETONU TL 100MM ","M",10.199999999999999,0,0,null,{"$f":"ROUND((ROUND(H128,3))*(ROUND(K128,2)),2)","v":0}]
[null,null,null,null,null,null,null,""]
[null,null,null,null,null,"5,1+5,1",null,""]
[null,null,null,null,null,"Technická specifikace položky odpovídá příslušné cenové soustavě",null,""]
[null,28,"93543       ",1,"OTSKP","ŽLABY Z DÍLCŮ Z POLYMERBETONU SVĚTLÉ ŠÍŘKY DO 200MM VČETNĚ MŘÍŽÍ","M",4,0,0,null,{"$f":"ROUND((ROUND(H132,3))*(ROUND(K132,2)),2)","v":0}]
[null,null,null,null,null,null,null,""]
[null,null,null,null,null,"4m",null,""]
[null,null,null,null,null,"Technická specifikace položky odpovídá příslušné cenové soustavě",null,""]
[null,29,"965010",1,"OTSKP","ODSTRANĚNÍ KOLEJOVÉHO LOŽE A DRÁŽNÍCH STEZEK","M3",109.2,0,0,null,{"$f":"ROUND((ROUND(H136,3))*(ROUND(K136,2)),2)","v":0}]
[null,null,null,null,null,null,null,""]
[null,null,null,null,null,"52*2,1",null,""]
[null,null,null,null,null,"Technická specifikace položky odpovídá příslušné cenové soustavě",null,""]
[null,30,"965021",1,"OTSKP","ODSTRANĚNÍ KOLEJOVÉHO LOŽE A DRÁŽNÍCH STEZEK - ODVOZ NA SKLÁDKU","M3KM",2184,0,0,null,{"$f":"ROUND((ROUND(H140,3))*(ROUND(K140,2)),2)","v":0}]
[null,null,null,null,null,null,null,""]
[null,null,null,null,null,"109,2*20",null,""]
[null,null,null,null,null,"Technická specifikace položky odpovídá příslušné cenové soustavě",null,""]
[null,31,"965114",1,"OTSKP","DEMONTÁŽ KOLEJE NA BETONOVÝCH PRAŽCÍCH ROZEBRÁNÍM DO SOUČÁSTÍ","M",52,0,0,null,{"$f":"ROUND((ROUND(H144,3))*(ROUND(K144,2)),2)","v":0}]
[null,null,null,null,null,null,null,""]
[null,null,null,null,null,"52 m",null,""]
[null,null,null,null,null,"Technická specifikace položky odpovídá příslušné cenové soustavě",null,""]
[null,32,"965115",1,"OTSKP","DEMONTÁŽ KOLEJE NA BETONOVÝCH PRAŽCÍCH - ODVOZ ROZEBRANÝCH SOUČÁSTÍ NA MONTÁŽNÍ ZÁKLADNU","TKM",602.16,0,0,null,{"$f":"ROUND((ROUND(H148,3))*(ROUND(K148,2)),2)","v":0}]
[null,null,null,null,null,null,null,""]
[null,null,null,null,null,"52*0,579*20",null,""]
[null,null,null,null,null,"Technická specifikace položky odpovídá příslušné cenové soustavě",null,""]
[null,33,"965311",1,"OTSKP","ROZEBRÁNÍ PŘEJEZDU, PŘECHODU Z DÍLCŮ","M2",15,0,0,null,{"$f":"ROUND((ROUND(H152,3))*(ROUND(K152,2)),2)","v":0}]
[null,null,null,null,null,null,null,""]
[null,null,null,null,null,"5*3",null,""]
[null,null,null,null,null,"Technická specifikace položky odpovídá příslušné cenové soustavě",null,""]
[null,34,"27121",1,"OTSKP","PROVIZORNÍ PŘÍSTUPOVÉ CESTY - ZŘÍZENÍ","M2",210,0,0,null,{"$f":"ROUND((ROUND(H156,3))*(ROUND(K156,2)),2)","v":0}]
[null,null,null,null,null,null,null,""]
[null,null,null,null,null,null,null,""]
[null,null,null,null,null,"Technická specifikace položky odpovídá příslušné cenové soustavě, Položka obsahuje i 2x zřízení provizorního přejezdu.",null,""]
[null,35,"27123",1,"OTSKP","PROVIZORNÍ PŘÍSTUPOVÉ CESTY - ZRUŠENÍ","M2",210,0,0,null,{"$f":"ROUND((ROUND(H160,3))*(ROUND(K160,2)),2)","v":0}]
[null,null,null,null,null,null,null,""]
[null,null,null,null,null,null,null,""]
[null,null,null,null,null,"Technická specifikace položky odpovídá příslušné cenové soustavě, Položka obsahuje i 2x zrušení provizorního přejezdu.",null,""]
["D","Součet","za  Díl",null,null,"Ostatní konstrukce a práce",null,null,null,null,null,{"$f":"SUM(L112:L163)","v":0}]

{"sheet":"Kategorie monitoringu","index":1,"n_rows":25,"n_cols":2,"rows_kept":25,"cut":false,"hidden":true,"merged":[]}
["E.1.1.1","Železniční svršek"]
["E.1.1.2","Železniční spodek"]
["E.1.2","Nástupiště"]
["E.1.3","Železniční přejezdy"]
["E.1.4","Mosty, propustky, zdi"]
["E.1.5","Ostatní inženýrské objekty"]
["E.1.6","Potrubní vedení"]
["E.1.7","Železniční tunely"]
["E.1.8","Pozemní komunikace"]
["E.1.9","Kabelovody, kolektory"]
["E.1.10","Protihlukové objekty"]
["E.2","Pozemní stavební objekty"]
["E.3.1","Trakční vedení"]
["E.3.2","Napájecí stanice (měnírna, trakční transformovna) – stavební část"]
["E.3.3","Spínací stanice – stavební část"]
["E.3.4","Ohřev výměn (elektrický - EOV, plynový - POV)"]
["E.3.5","Elektrické předtápěcí zařízení (EPZ)"]
["E.3.6","Rozvodny vn, nn, osvětlení a dálkové ovládání odpojovačů"]
["E.3.7","Ukolejnění kovových konstrukcí"]
["E.3.8","Vnější uzemnění"]
["E.3.9","Ostatní kabelizace"]
["D.1","Železniční zabezpečovací zařízení"]
["D.2","Železniční sdělovací zařízení"]
["D.3","Silnoproudá technologie včetně DŘT"]
["D.4","Ostatní technologická zařízení"]

{"sheet":"hide","index":2,"n_rows":8,"n_cols":12,"rows_kept":8,"cut":false,"hidden":true,"merged":[]}
["P",null,null,null,null,null,null,null,null,{"$f":"IF(I1=0,\"\",I1*H1)","v":""},null,{"$f":"ROUND((ROUND(H1,3))*(ROUND(K1,2)),2)","v":0}]
["PP"]
["VV"]
["TS"]
[]
[null,"Saoučet za díl:",null,null,null,"Zemní práce"]
[]
["D","Díl:",null,null,null,"Název dílu"]